fUST/lending_fUST_20250925
["ID","MTS","AMOUNT","RATE_DAILY","PERIOD"]
[387525967,1758754264532,-480.0,0.00021095,2]
[387525969,1758754264542,-480.0,0.00021095,2]
[387525971,1758754264551,-1009.63,0.00021095,2]
[387525973,1758754264563,-2885.73,0.00021095,2]
[387525975,1758754264574,-480.0,0.00021095,2]
[387525977,1758754264584,-480.0,0.00021095,2]
[387525979,1758754264594,-1455.01,0.00021095,2]
[387525981,1758754264604,-480.0,0.00021095,2]
[387525983,1758754264614,-1757.16,0.00021095,2]
[387525985,1758754264624,-1641.21,0.00021095,2]
[387525987,1758754264634,-637.64,0.00021095,2]
[387525989,1758754264646,-1722.63,0.00021095,2]
[387525991,1758754264655,-572.41075116,0.00021095,2]
[387525993,1758754264665,-944.67,0.00021095,2]
[387525995,1758754264675,-5911.94,0.00021095,2]
[387525997,1758754264684,-660.28,0.00021095,2]
[387525999,1758754264694,-493.81,0.00021095,2]
[387526001,1758754264704,-519.33,0.00021095,2]
[387526003,1758754264713,-1219.23,0.00021095,2]
[387526005,1758754264723,-650.19,0.00021095,2]
[387526007,1758754264733,-1265.44,0.00021095,2]
[387526009,1758754264742,-628.32,0.00021095,2]
[387526011,1758754264752,-545.13,0.00021095,2]
[387526013,1758754264762,-1581.09,0.00021095,2]
[387526015,1758754264772,-3133.48,0.00021095,2]
[387526017,1758754264782,-480.0,0.00021095,2]
[387526019,1758754264791,-1359.8,0.00021095,2]
[387526021,1758754264803,-480.0,0.00021095,2]
[387526023,1758754264812,-515.33,0.00021095,2]
[387526025,1758754264822,-1107.55,0.00021095,2]
[387526027,1758754264831,-607.09,0.00021095,2]
[387526030,1758754264842,-480.0,0.00021095,2]
[387526032,1758754264852,-480.0,0.00021095,2]
[387526034,1758754264862,-1379.5,0.00021095,2]
[387526036,1758754264871,-480.0,0.00021095,2]
[387526038,1758754264881,-1193.3,0.00021095,2]
[387526040,1758754264891,-480.0,0.00021095,2]
[387526042,1758754264900,-480.0,0.00021095,2]
[387526044,1758754264910,-485.51293316,0.00021095,2]
[387526056,1758754265003,-480.0,0.00021095,2]
[387526058,1758754265022,-617.62,0.00021095,2]
[387526060,1758754265033,-619.59,0.00021095,2]
[387526062,1758754265042,-480.0,0.00021095,2]
[387526064,1758754265052,-714.64,0.00021095,2]
[387526066,1758754265061,-638.47,0.00021095,2]
[387526068,1758754265071,-575.14,0.00021095,2]
[387526070,1758754265080,-771.56,0.00021095,2]
[387526073,1758754265091,-559.62,0.00021095,2]
[387526075,1758754265100,-578.62,0.00021095,2]
[387526077,1758754265110,-480.0,0.00021095,2]
[387526079,1758754265120,-1587.46,0.00021095,2]
[387526081,1758754265130,-636.7,0.00021095,2]
[387526083,1758754265140,-2076.9,0.00021095,2]
[387526085,1758754265150,-480.0,0.00021095,2]
[387526087,1758754265160,-205.95187171,0.00021095,2]
[387526089,1758754265169,-520.23076884,0.00021095,2]
[387526091,1758754265179,-601.23,0.00021095,2]
[387526093,1758754265188,-892.44,0.00021095,2]
[387526095,1758754265198,-1552.27,0.00021095,2]
[387526097,1758754265207,-1187.23,0.00021095,2]
[387526099,1758754265217,-480.0,0.00021095,2]
[387526101,1758754265227,-480.0,0.00021095,2]
[387526103,1758754265236,-480.0,0.00021095,2]
[387526105,1758754265245,-480.0,0.00021095,2]
[387526107,1758754265255,-480.0,0.00021095,2]
[387526109,1758754265264,-406.35373539,0.00021095,2]
[387526111,1758754265273,-508.19,0.00021095,2]
[387526113,1758754265283,-500.0,0.00021096,2]
[387526115,1758754265292,-500.0,0.00021096,2]
[387526117,1758754265301,-160.0,0.00021106,2]
[387526119,1758754265310,-1506.70609278,0.00021116,2]
[387526121,1758754265320,-2000.0,0.00021116,2]
[387526123,1758754265329,-2000.0,0.00021116,2]
[387526125,1758754265339,-2000.0,0.00021116,2]
[387526127,1758754265348,-1500.0,0.00021116,2]
[387526129,1758754265358,-1010.82669321,0.00021116,2]
[387526131,1758754265368,-2000.0,0.00021116,2]
[387526134,1758754265378,-500.0,0.00021116,2]
[387526135,1758754265387,-2000.0,0.00021116,2]
[387526138,1758754265397,-2000.0,0.00021116,2]
[387526140,1758754265406,-2000.0,0.00021116,2]
[387526142,1758754265416,-168.58402945,0.00021202,2]
[387526144,1758754265425,-250.0,0.00021245,2]
[387526146,1758754265435,-1500.0,0.00021368,2]
[387526148,1758754265444,-1504.14783591,0.00021368,2]
[387526150,1758754265454,-500.0,0.00021368,2]
[387526152,1758754265463,-1500.0,0.00021368,2]
[387526154,1758754265473,-508.65777358,0.00021368,2]
[387526156,1758754265482,-1500.0,0.00021368,2]
[387526158,1758754265492,-500.0,0.00021368,2]
[387526160,1758754265503,-406.13525957,0.00021368,2]
[387526162,1758754265512,-1500.0,0.00021368,2]
[387526164,1758754265521,-1500.0,0.00021368,2]
[387526166,1758754265530,-484.8258088,0.00021368,2]
[387526168,1758754265541,-1500.0,0.00021368,2]
[387526170,1758754265550,-500.0,0.00021368,2]
[387526172,1758754265560,-1500.0,0.00021368,2]
[387526174,1758754265573,-1500.0,0.00021368,2]
[387526176,1758754265582,-480.0,0.00021369,2]
[387526178,1758754265592,-480.0,0.00021369,2]
[387526180,1758754265602,-480.0,0.00021369,2]
[387526182,1758754265612,-480.0,0.00021369,2]
[387526184,1758754265621,-480.0,0.00021369,2]
[387526186,1758754265631,-480.0,0.00021369,2]
[387526188,1758754265641,-480.0,0.00021369,2]
[387526190,1758754265651,-480.0,0.00021369,2]
[387526192,1758754265661,-460.13,0.00021369,2]
[387526194,1758754265670,-480.0,0.00021369,2]
[387526196,1758754265679,-735.57,0.00021369,2]
[387526198,1758754265688,-523.78,0.00021369,2]
[387526200,1758754265697,-532.0,0.00021369,2]
[387526202,1758754265707,-480.0,0.00021369,2]
[387526204,1758754265716,-480.0,0.00021369,2]
[387526206,1758754265726,-480.0,0.00021369,2]
[387526208,1758754265735,-480.0,0.00021369,2]
[387526210,1758754265744,-480.0,0.00021369,2]
[387526212,1758754265754,-728.49,0.00021369,2]
[387526214,1758754265763,-480.0,0.00021369,2]
[387526216,1758754265772,-480.0,0.00021369,2]
[387526218,1758754265782,-480.0,0.00021369,2]
[387526220,1758754265791,-480.0,0.00021369,2]
[387526222,1758754265800,-480.0,0.00021369,2]
[387526224,1758754265811,-1009.63,0.00021369,2]
[387526226,1758754265820,-480.0,0.00021369,2]
[387526228,1758754265829,-2885.73,0.00021369,2]
[387526230,1758754265839,-480.0,0.00021369,2]
[387526232,1758754265848,-1455.01,0.00021369,2]
[387526234,1758754265857,-480.0,0.00021369,2]
[387526236,1758754265867,-1757.16,0.00021369,2]
[387526238,1758754265876,-1641.21,0.00021369,2]
[387526240,1758754265886,-637.64,0.00021369,2]
[387526242,1758754265895,-1722.63,0.00021369,2]
[387526244,1758754265904,-944.67,0.00021369,2]
[387526246,1758754265915,-5911.94,0.00021369,2]
[387526248,1758754265925,-660.28,0.00021369,2]
[387526250,1758754265934,-493.81,0.00021369,2]
[387526252,1758754265944,-519.33,0.00021369,2]
[387526254,1758754265954,-1219.23,0.00021369,2]
[387526256,1758754265964,-650.19,0.00021369,2]
[387526258,1758754265973,-1265.44,0.00021369,2]
[387526260,1758754265983,-628.32,0.00021369,2]
[387526262,1758754265992,-545.13,0.00021369,2]
[387526264,1758754266002,-1581.09,0.00021369,2]
[387526266,1758754266013,-3133.48,0.00021369,2]
[387526268,1758754266023,-480.0,0.00021369,2]
[387526270,1758754266032,-1359.8,0.00021369,2]
[387526272,1758754266042,-480.0,0.00021369,2]
[387526274,1758754266051,-1107.55,0.00021369,2]
[387526276,1758754266061,-607.09,0.00021369,2]
[387526278,1758754266071,-159.6,0.00021369,2]
[387526280,1758754266081,-480.0,0.00021369,2]
[387526282,1758754266091,-1379.5,0.00021369,2]
[387526284,1758754266102,-480.0,0.00021369,2]
[387526286,1758754266111,-1193.3,0.00021369,2]
[387526288,1758754266121,-480.0,0.00021369,2]
[387526290,1758754266131,-480.0,0.00021369,2]
[387526292,1758754266141,-480.0,0.00021369,2]
[387526294,1758754266150,-617.62,0.00021369,2]
[387526296,1758754266159,-619.59,0.00021369,2]
[387526298,1758754266169,-480.0,0.00021369,2]
[387526300,1758754266178,-714.64,0.00021369,2]
[387526302,1758754266188,-638.47,0.00021369,2]
[387526304,1758754266198,-575.14,0.00021369,2]
[387526306,1758754266207,-771.56,0.00021369,2]
[387526308,1758754266216,-578.62,0.00021369,2]
[387526310,1758754266226,-1587.46,0.00021369,2]
[387526312,1758754266236,-636.7,0.00021369,2]
[387526314,1758754266246,-2076.9,0.00021369,2]
[387526316,1758754266255,-160.41,0.00021369,2]
[387526318,1758754266264,-601.23,0.00021369,2]
[387526320,1758754266273,-892.44,0.00021369,2]
[387526322,1758754266283,-1552.27,0.00021369,2]
[387526324,1758754266292,-1187.23,0.00021369,2]
[387526326,1758754266301,-480.0,0.00021369,2]
[387526328,1758754266311,-480.0,0.00021369,2]
[387526330,1758754266320,-480.0,0.00021369,2]
[387526331,1758754266329,-480.0,0.00021369,2]
[387526332,1758754266341,-480.0,0.00021369,2]
[387526333,1758754266350,-508.19,0.00021369,2]
[387526334,1758754266360,-500.0,0.0002137,2]
[387526335,1758754266370,-500.0,0.0002137,2]
[387526336,1758754266379,-1100.6141563,0.00021416,2]
[387526337,1758754266387,-500.0,0.00021421,2]
[387526338,1758754266397,-6000.0,0.00021462,2]
[387526339,1758754266406,-2500.0,0.00021464,2]
[387526340,1758754266415,-4244.78012399,0.00021601,5]
[387526341,1758754266424,-267.83777856,0.00021643,2]
[387526342,1758754266432,-480.0,0.00021643,2]
[387526343,1758754266441,-480.0,0.00021643,2]
[387526344,1758754266450,-480.0,0.00021643,2]
[387526345,1758754266459,-480.0,0.00021643,2]
[387526346,1758754266468,-480.0,0.00021643,2]
[387526347,1758754266477,-171.41823262,0.00021643,2]
[387526348,1758754266486,-346.18369591,0.00021643,2]
[387526349,1758754266495,-480.0,0.00021643,2]
[387526350,1758754266504,-735.57,0.00021643,2]
[387526351,1758754266514,-523.78,0.00021643,2]
[387526352,1758754266523,-532.0,0.00021643,2]
[387526353,1758754266531,-480.0,0.00021643,2]
[387526354,1758754266541,-480.0,0.00021643,2]
[387526355,1758754266550,-480.0,0.00021643,2]
[387526356,1758754266559,-480.0,0.00021643,2]
[387526357,1758754266574,-480.0,0.00021643,2]
[387526358,1758754266583,-728.49,0.00021643,2]
[387526359,1758754266593,-480.0,0.00021643,2]
[387526360,1758754266602,-585.67674437,0.00021643,2]
[387526361,1758754266613,-480.0,0.00021643,2]
[387526362,1758754266623,-303.12968573,0.00021643,2]
[387526363,1758754266633,-480.0,0.00021643,2]
[387526364,1758754266644,-1009.63,0.00021643,2]
[387526365,1758754266653,-480.0,0.00021643,2]
[387526366,1758754266663,-480.0,0.00021643,2]
[387526367,1758754266673,-1455.01,0.00021643,2]
[387526368,1758754266682,-2885.73,0.00021643,2]
[387526369,1758754266692,-480.0,0.00021643,2]
[387526370,1758754266702,-1757.16,0.00021643,2]
[387526371,1758754266711,-1641.21,0.00021643,2]
[387526372,1758754266721,-637.64,0.00021643,2]
[387526373,1758754266730,-1722.63,0.00021643,2]
[387526374,1758754266740,-944.67,0.00021643,2]
[387526375,1758754266749,-5911.94,0.00021643,2]
[387526376,1758754266762,-660.28,0.00021643,2]
[387526377,1758754266771,-493.81,0.00021643,2]
[387526378,1758754266780,-519.33,0.00021643,2]
[387526379,1758754266790,-1219.23,0.00021643,2]
[387526380,1758754266799,-650.19,0.00021643,2]
[387526381,1758754266810,-1265.44,0.00021643,2]
[387526382,1758754266819,-628.32,0.00021643,2]
[387526383,1758754266828,-545.13,0.00021643,2]
[387526384,1758754266838,-1581.09,0.00021643,2]
[387526385,1758754266847,-3133.48,0.00021643,2]
[387526386,1758754266858,-480.0,0.00021643,2]
[387526387,1758754266868,-1359.8,0.00021643,2]
[387526388,1758754266877,-480.0,0.00021643,2]
[387526389,1758754266887,-1107.55,0.00021643,2]
[387526390,1758754266896,-607.09,0.00021643,2]
[387526391,1758754266907,-520.43,0.00021643,2]
[387526392,1758754266918,-1379.5,0.00021643,2]
[387526393,1758754266928,-480.0,0.00021643,2]
[387526394,1758754266937,-1193.3,0.00021643,2]
[387526395,1758754266947,-480.0,0.00021643,2]
[387526396,1758754266957,-480.0,0.00021643,2]
[387526397,1758754266967,-480.0,0.00021643,2]
[387526398,1758754266977,-617.62,0.00021643,2]
[387526399,1758754266986,-619.59,0.00021643,2]
[387526400,1758754266995,-480.0,0.00021643,2]
[387526401,1758754267004,-714.64,0.00021643,2]
[387526402,1758754267015,-638.47,0.00021643,2]
[387526403,1758754267024,-575.14,0.00021643,2]
[387526404,1758754267034,-771.56,0.00021643,2]
[387526405,1758754267043,-578.62,0.00021643,2]
[387526406,1758754267053,-1587.46,0.00021643,2]
[387526407,1758754267063,-636.7,0.00021643,2]
[387526408,1758754267073,-2076.9,0.00021643,2]
[387526409,1758754267082,-601.23,0.00021643,2]
[387526410,1758754267177,-892.44,0.00021643,2]
[387526411,1758754267187,-1552.27,0.00021643,2]
[387526412,1758754267196,-1187.23,0.00021643,2]
[387526413,1758754267206,-480.0,0.00021643,2]
[387526414,1758754267215,-232.32,0.00021643,2]
[387526415,1758754267225,-480.0,0.00021643,2]
[387526416,1758754267235,-480.0,0.00021643,2]
[387526417,1758754267244,-480.0,0.00021643,2]
[387526418,1758754267253,-508.19,0.00021643,2]
[387526419,1758754267263,-343.44418583,0.00021644,2]
[387526420,1758754267272,-3039.0146627,0.00021651,2]
[387526422,1758754267282,-260.0,0.00021654,2]
[387526424,1758754267291,-2500.0,0.00021664,2]
[387526426,1758754267301,-2500.0,0.00021664,2]
[387526428,1758754267310,-2500.0,0.00021664,2]
[387526430,1758754267320,-2500.0,0.00021664,2]
[387526432,1758754267329,-1500.0,0.00021664,2]
[387526434,1758754267338,-2500.0,0.00021664,2]
[387526436,1758754267347,-2500.0,0.00021664,2]
[387526438,1758754267358,-3007.485834,0.00021828,2]
[387526440,1758754267367,-829.3994592,0.00021866,2]
[387526442,1758754267377,-500.0,0.00021916,2]
[387526444,1758754267387,-2000.0,0.00021916,2]
[387526446,1758754267399,-2000.0,0.00021916,2]
[387526448,1758754267412,-1000.0,0.00021916,2]
[387526449,1758754267424,-500.0,0.00021916,2]
[387526451,1758754267434,-2000.0,0.00021916,2]
[387526453,1758754267445,-236.89195217,0.00021916,2]
[387526455,1758754267454,-1000.0,0.00021916,2]
[387526457,1758754267464,-480.0,0.00021917,2]
[387526459,1758754267473,-480.0,0.00021917,2]
[387526460,1758754267483,-480.0,0.00021917,2]
[387526461,1758754267493,-480.0,0.00021917,2]
[387526462,1758754267502,-480.0,0.00021917,2]
[387526463,1758754267512,-480.0,0.00021917,2]
[387526464,1758754267521,-480.0,0.00021917,2]
[387526465,1758754267530,-735.57,0.00021917,2]
[387526466,1758754267539,-523.78,0.00021917,2]
[387526467,1758754267548,-532.0,0.00021917,2]
[387526468,1758754267566,-480.0,0.00021917,2]
[387526469,1758754267580,-480.0,0.00021917,2]
[387526470,1758754267590,-480.0,0.00021917,2]
[387526471,1758754267600,-480.0,0.00021917,2]
[387526472,1758754267613,-500.0,0.00021917,2]
[387526473,1758754267623,-500.0,0.00021917,2]
[387526474,1758754267633,-500.0,0.00021917,2]
[387526475,1758754267644,-500.0,0.00021917,2]
[387526476,1758754267653,-500.0,0.00021917,2]
[387526477,1758754267663,-500.0,0.00021917,2]
[387526478,1758754267672,-500.0,0.00021917,2]
[387526479,1758754267681,-500.0,0.00021917,2]
[387526480,1758754267690,-500.0,0.00021917,2]
[387526481,1758754267699,-500.0,0.00021917,2]
[387526482,1758754267709,-500.0,0.00021917,2]
[387526483,1758754267718,-283.54,0.00021917,2]
[387526484,1758754267726,-728.49,0.00021917,2]
[387526485,1758754267736,-480.0,0.00021917,2]
[387526486,1758754267745,-480.0,0.00021917,2]
[387526487,1758754267754,-480.0,0.00021917,2]
[387526488,1758754267764,-1009.63,0.00021917,2]
[387526490,1758754267773,-480.0,0.00021917,2]
[387526492,1758754267783,-480.0,0.00021917,2]
[387526494,1758754267792,-1455.01,0.00021917,2]
[387526496,1758754267801,-2885.73,0.00021917,2]
[387526498,1758754267810,-480.0,0.00021917,2]
[387526500,1758754267820,-1757.16,0.00021917,2]
[387526502,1758754267831,-1641.21,0.00021917,2]
[387526504,1758754267840,-637.64,0.00021917,2]
[387526506,1758754267850,-1722.63,0.00021917,2]
[387526508,1758754267860,-944.67,0.00021917,2]
[387526510,1758754267869,-5911.94,0.00021917,2]
[387526512,1758754267879,-660.28,0.00021917,2]
[387526514,1758754267888,-493.81,0.00021917,2]
[387526516,1758754267898,-519.33,0.00021917,2]
[387526518,1758754267908,-1219.23,0.00021917,2]
[387526520,1758754267918,-650.19,0.00021917,2]
[387526522,1758754267927,-1265.44,0.00021917,2]
[387526524,1758754267936,-628.32,0.00021917,2]
[387526526,1758754267945,-545.13,0.00021917,2]
[387526528,1758754267954,-1581.09,0.00021917,2]
[387526530,1758754267964,-3133.48,0.00021917,2]
[387526532,1758754267974,-480.0,0.00021917,2]
[387526534,1758754267983,-1359.8,0.00021917,2]
[387526536,1758754267993,-480.0,0.00021917,2]
[387526538,1758754268002,-1107.55,0.00021917,2]
[387526540,1758754268011,-607.09,0.00021917,2]
[387526542,1758754268021,-1379.5,0.00021917,2]
[387526544,1758754268031,-480.0,0.00021917,2]
[387526546,1758754268040,-1193.3,0.00021917,2]
[387526548,1758754268050,-480.0,0.00021917,2]
[387526550,1758754268059,-480.0,0.00021917,2]
[387526552,1758754268068,-480.0,0.00021917,2]
[387526554,1758754268078,-617.62,0.00021917,2]
[387526556,1758754268087,-619.59,0.00021917,2]
[387526558,1758754268096,-480.0,0.00021917,2]
[387526560,1758754268105,-714.64,0.00021917,2]
[387526562,1758754268115,-638.47,0.00021917,2]
[387526564,1758754268124,-575.14,0.00021917,2]
[387526565,1758754268133,-771.56,0.00021917,2]
[387526567,1758754268142,-578.62,0.00021917,2]
[387526569,1758754268151,-1587.46,0.00021917,2]
[387526571,1758754268160,-2076.9,0.00021917,2]
[387526572,1758754268170,-636.7,0.00021917,2]
[387526575,1758754268180,-601.23,0.00021917,2]
[387526576,1758754268189,-892.44,0.00021917,2]
[387526579,1758754268199,-1552.27,0.00021917,2]
[387526580,1758754268208,-1187.23,0.00021917,2]
[387526583,1758754268217,-480.0,0.00021917,2]
[387526585,1758754268227,-480.0,0.00021917,2]
[387526586,1758754268237,-480.0,0.00021917,2]
[387526589,1758754268247,-480.0,0.00021917,2]
[387526591,1758754268256,-508.19,0.00021917,2]
[387526592,1758754268286,-151.0,0.00021918,2]
[387526595,1758754268296,-151.0,0.00021918,2]
[387526597,1758754268305,-151.0,0.00021918,2]
[387526599,1758754268315,-206.604516,0.00021918,2]
[387526601,1758754268324,-255.324,0.00021918,2]
[387526603,1758754268333,-255.324,0.00021918,2]
[387526605,1758754268343,-255.324,0.00021918,2]
[387526607,1758754268352,-255.324,0.00021918,2]
[387526609,1758754268368,-255.324,0.00021918,2]
[387526611,1758754268383,-255.324,0.00021918,2]
[387526613,1758754268394,-255.324,0.00021918,2]
[387526615,1758754268403,-255.324,0.00021918,2]
[387526617,1758754268413,-255.324,0.00021918,2]
[387526619,1758754268422,-255.324,0.00021918,2]
[387526621,1758754268432,-255.324,0.00021918,2]
[387526623,1758754268441,-255.324,0.00021918,2]
[387526625,1758754268450,-255.324,0.00021918,2]
[387526627,1758754268459,-255.324,0.00021918,2]
[387526629,1758754268469,-255.324,0.00021918,2]
[387526631,1758754268479,-255.324,0.00021918,2]
[387526633,1758754268488,-255.324,0.00021918,2]
[387526635,1758754268498,-255.324,0.00021918,2]
[387526637,1758754268508,-255.324,0.00021918,2]
[387526639,1758754268518,-255.324,0.00021918,2]
[387526641,1758754268527,-150.0,0.00021918,2]
[387526643,1758754268537,-9000.0,0.00021994,2]
[387526645,1758754268546,-200.58178861,0.00021999,2]
[387526647,1758754268555,-3206.35,0.00022,2]
[387526649,1758754268571,-100070.71604656,0.00022,5]
[387526651,1758754268580,-490.18785629,0.00022012,2]
[387526653,1758754268590,-3238.26353196,0.00022044,2]
[387526655,1758754268599,-212.0,0.00022147,2]
[387526656,1758754268610,-160.0,0.00022152,2]
[387526657,1758754268619,-160.0,0.00022152,2]
[387526658,1758754268629,-160.0,0.00022152,2]
[387526659,1758754268639,-160.0,0.00022152,2]
[387526660,1758754268649,-532.2324375,0.00022152,2]
[387526661,1758754268658,-233.62170814,0.00022152,2]
[387526662,1758754268668,-417.15472785,0.00022152,2]
[387526663,1758754268678,-157.0,0.00022164,6]
[387526664,1758754268687,-480.0,0.00022191,2]
[387526665,1758754268697,-480.0,0.00022191,2]
[387526666,1758754268707,-480.0,0.00022191,2]
[387526667,1758754268717,-480.0,0.00022191,2]
[387526668,1758754268727,-480.0,0.00022191,2]
[387526669,1758754268736,-480.0,0.00022191,2]
[387526670,1758754268746,-735.57,0.00022191,2]
[387526671,1758754268755,-523.78,0.00022191,2]
[387526672,1758754268765,-532.0,0.00022191,2]
[387526673,1758754268775,-480.0,0.00022191,2]
[387526674,1758754268784,-480.0,0.00022191,2]
[387526675,1758754268794,-480.0,0.00022191,2]
[387526676,1758754268803,-480.0,0.00022191,2]
[387526677,1758754268813,-247.00894451,0.00022191,2]
[387526678,1758754268822,-728.49,0.00022191,2]
[387526679,1758754268831,-480.0,0.00022191,2]
[387526680,1758754268841,-183.97,0.00022191,2]
[387526681,1758754268851,-480.0,0.00022191,2]
[387526682,1758754268861,-1009.63,0.00022191,2]
[387526683,1758754268870,-480.0,0.00022191,2]
[387526684,1758754268880,-480.0,0.00022191,2]
[387526685,1758754268890,-1455.01,0.00022191,2]
[387526686,1758754268899,-2885.73,0.00022191,2]
[387526687,1758754268909,-480.0,0.00022191,2]
[387526688,1758754268918,-1757.16,0.00022191,2]
[387526689,1758754268928,-1641.21,0.00022191,2]
[387526690,1758754268937,-637.64,0.00022191,2]
[387526691,1758754268947,-1722.63,0.00022191,2]
[387526692,1758754268956,-944.67,0.00022191,2]
[387526693,1758754268965,-5911.94,0.00022191,2]
[387526694,1758754268976,-660.28,0.00022191,2]
[387526695,1758754268985,-493.81,0.00022191,2]
[387526696,1758754268994,-519.33,0.00022191,2]
[387526697,1758754269004,-1219.23,0.00022191,2]
[387526698,1758754269014,-650.19,0.00022191,2]
[387526699,1758754269023,-1265.44,0.00022191,2]
[387526700,1758754269034,-628.32,0.00022191,2]
[387526701,1758754269043,-545.13,0.00022191,2]
[387526702,1758754269052,-1581.09,0.00022191,2]
[387526703,1758754269063,-3133.48,0.00022191,2]
[387526704,1758754269073,-480.0,0.00022191,2]
[387526705,1758754269083,-1359.8,0.00022191,2]
[387526706,1758754269094,-480.0,0.00022191,2]
[387526707,1758754269103,-1107.55,0.00022191,2]
[387526708,1758754269115,-607.09,0.00022191,2]
[387526709,1758754269125,-1379.5,0.00022191,2]
[387526710,1758754269135,-480.0,0.00022191,2]
[387526711,1758754269145,-1193.3,0.00022191,2]
[387526712,1758754269236,-480.0,0.00022191,2]
[387526713,1758754269245,-480.0,0.00022191,2]
[387526714,1758754269255,-480.0,0.00022191,2]
[387526715,1758754269287,-617.62,0.00022191,2]
[387526717,1758754269297,-619.59,0.00022191,2]
[387526718,1758754269306,-480.0,0.00022191,2]
[387526719,1758754269316,-714.64,0.00022191,2]
[387526721,1758754269325,-638.47,0.00022191,2]
[387526723,1758754269335,-575.14,0.00022191,2]
[387526725,1758754269344,-771.56,0.00022191,2]
[387526727,1758754269354,-578.62,0.00022191,2]
[387526729,1758754269366,-233.86226092,0.00022191,2]
[387526748,1758754269552,-1353.59773908,0.00022191,2]
[387526749,1758754269565,-2076.9,0.00022191,2]
[387526751,1758754269576,-636.7,0.00022191,2]
[387526752,1758754269585,-601.23,0.00022191,2]
[387526754,1758754269595,-892.44,0.00022191,2]
[387526755,1758754269607,-1552.27,0.00022191,2]
[387526757,1758754269616,-931.31236633,0.00022191,2]
[387526758,1758754269629,-255.91763367,0.00022191,2]
[387526760,1758754269640,-480.0,0.00022191,2]
[387526761,1758754269649,-480.0,0.00022191,2]
[387526763,1758754269659,-322.33551605,0.00022191,2]
[387526764,1758754269668,-618.88,0.00022191,2]
[387526766,1758754269678,-508.19,0.00022191,2]
[387526767,1758754269688,-360.0,0.00022202,2]
[387526769,1758754269697,-678.0958283,0.00022203,2]
[387526770,1758754269707,-508.70507964,0.00022212,2]
[387526772,1758754269716,-1000.0,0.00022212,2]
[387526773,1758754269726,-432.43637156,0.00022212,2]
[387526775,1758754269736,-263.92962388,0.00022212,2]
[387526777,1758754269746,-2000.0,0.00022212,2]
[387526778,1758754269755,-3000.0,0.00022212,2]
[387526780,1758754269764,-226.75,0.00022272,2]
[387526781,1758754269773,-671.0607958,0.00022385,2]
[387526783,1758754269783,-2500.0,0.00022464,2]
[387526785,1758754269793,-2500.0,0.00022464,2]
[387526786,1758754269802,-2500.0,0.00022464,2]
[387526788,1758754269812,-480.0,0.00022465,2]
[387526790,1758754269822,-480.0,0.00022465,2]
[387526791,1758754269832,-480.0,0.00022465,2]
[387526793,1758754269841,-480.0,0.00022465,2]
[387526794,1758754269850,-480.0,0.00022465,2]
[387526796,1758754269861,-289.41,0.00022465,2]
[387526797,1758754269870,-735.57,0.00022465,2]